[Event "Slovakian ECo-C Extraliga 2024-25"]
[Site "Slovakia"]
[Date "2025.02.16"]
[Round "6.6"]
[White "Sekova, Olivia"]
[Black "Pacher, Milan"]
[Result "0-1"]
[Annotator "ChessBase"]
[ECO "B27"]
[WhiteElo "2003"]
[BlackElo "2329"]
[PlyCount "74"]
[EventDate "2024.09.12"]
[EventType "team-tourn"]
[EventCountry "SVK"]
[SourceTitle "playchess.com"]
[Source "ChessBase"]
[SourceQuality "1"]
[TimeControl "5400+30"]

1. e4 {[%emt 0:00:03]} c5 {[%emt 0:00:05]} 2. Nf3 {[%emt 0:00:04]} g6 {[%emt 0:00:07]} 3. d4 {[%emt 0:00:06]} cxd4 {[%emt 0:00:04]} 4. Nxd4 {[%emt 0:00:05]} Bg7 {[%emt 0:00:05]} 5. Nc3 {[%emt 0:00:05]} Nc6 {[%emt 0:00:06]} 6. Be3 {[%emt 0:00:06]} Nf6 {[%emt 0:00:06]} 7. Nxc6 {[%emt 0:00:08]} bxc6 {[%emt 0:00:03]} 8. e5 {[%emt 0:00:09]} Ng8 {[%emt 0:00:04]} 9. Bd4 {[%emt 0:00:05]} Qa5 {[%emt 0:00:45]} 10. Bc4 {[%emt 0:00:34]} Bxe5 {[%emt 0:04:18]} 11. O-O {[%emt 0:00:05]} Nf6 {[%emt 0:01:15]} 12. Re1 {[%emt 0:01:33]} d6 {[%emt 0:01:09]} 13. Bxe5 {[%emt 0:04:06]} dxe5 {[%emt 0:00:02]} 14. Qe2 {[%emt 0:02:18]} Bf5 {[%emt 0:03:23]} 15. Bb3 {[%emt 0:05:42]} e4 {[%emt 0:01:40]} 16. Qc4 {[%emt 0:00:16]} O-O {[%emt 0:00:37]} 17. Qxc6 {[%emt 0:00:52]} Rac8 {[%emt 0:04:17]} 18. Qb5 {[%emt 0:02:54]} Qxb5 {[%emt 0:01:37]} 19. Nxb5 {[%emt 0:00:07]} Rc5 {[%emt 0:00:05]} 20. Nd4 {[%emt 0:01:17]} a5 {[%emt 0:02:05]} 21. Nxf5 {[%emt 0:02:32]} gxf5 {[%emt 0:02:50]} 22. Rad1 {[%emt 0:01:59]} Rb8 {[%emt 0:05:01]} 23. Rd4 {[%emt 0:02:29]} e6 {[%emt 0:01:14]} 24. Red1 {[%emt 0:02:27]} Kg7 {[%emt 0:00:50]} 25. c3 {[%emt 0:08:45]} h5 {[%emt 0:01:40]} 26. R1d2 {[%emt 0:00:54]} Ng4 {[%emt 0:05:44]} 27. Rc4 {[%emt 0:03:08]} Rcb5 {[%emt 0:04:17]} 28. Rc7 {[%emt 0:01:37]} Kf6 {[%emt 0:00:38]} 29. c4 {[%emt 0:00:32]} Rb4 {[%emt 0:13:09]} 30. Ra7 {[%emt 0:01:01]} Ne5 {[%emt 0:00:55]} 31. c5 R8b5 {[%emt 0:03:55]} 32. Rc2 {[%emt 0:16:29]} Nc6 {[%emt 0:00:28]} 33. Ra6 {[%emt 0:00:43]} Nd4 {[%emt 0:00:12]} 34. Rc3 {[%emt 0:01:37]} a4 {[%emt 0:03:42]} 35. Bd1 {[%emt 0:02:20]} Rxb2 {[%emt 0:00:25]} 36. Rc4 {[%emt 0:02:48]} Rd2 {[%emt 0:00:13]} 37. Rc1 {[%emt 0:00:45]} Rxc5 {[%emt 0:00:05]} 0-1

[Event "Slovakian ECo-C Extraliga 2024-25"]
[Site "Slovakia"]
[Date "2025.02.16"]
[Round "6.7"]
[White "Stevik, Patrik"]
[Black "Smetana, Peter"]
[Result "1-0"]
[Annotator "ChessBase"]
[ECO "A37"]
[WhiteElo "2331"]
[BlackElo "1947"]
[PlyCount "73"]
[EventDate "2024.09.12"]
[EventType "team-tourn"]
[EventCountry "SVK"]
[SourceTitle "playchess.com"]
[Source "ChessBase"]
[SourceQuality "1"]
[TimeControl "5400+30"]

1. Nf3 {[%emt 0:00:04]} c5 {[%emt 0:00:12]} 2. g3 {[%emt 0:00:02]} Nc6 {[%emt 0:00:13]} 3. Bg2 {[%emt 0:00:35]} g6 {[%emt 0:00:26]} 4. c4 {[%emt 0:00:40]} Bg7 {[%emt 0:00:24]} 5. Nc3 {[%emt 0:00:02]} d6 {[%emt 0:00:29]} 6. O-O {[%emt 0:00:19]} Nf6 {[%emt 0:01:58]} 7. d4 {[%emt 0:00:56]} cxd4 {[%emt 0:00:58]} 8. Nxd4 {[%emt 0:00:18]} Bd7 {[%emt 0:00:15]} 9. e3 {[%emt 0:06:24]} O-O {[%emt 0:02:25]} 10. b3 {[%emt 0:00:48]} Qc8 {[%emt 0:06:35]} 11. Re1 {[%emt 0:01:16]} Bh3 {[%emt 0:03:42]} 12. Bh1 {[%emt 0:00:03]} h5 {[%emt 0:01:27]} 13. Bb2 {[%emt 0:00:55]} h4 {[%emt 0:06:11]} 14. Rc1 {[%emt 0:00:50]} Ne5 {[%emt 0:04:20]} 15. f4 {[%emt 0:05:44]} Neg4 {[%emt 0:08:08]} 16. Qf3 {[%emt 0:00:45]} Rb8 {[%emt 0:28:31]} 17. gxh4 {[%emt 0:17:15]} Nh6 18. Nd5 {[%emt 0:00:21]} Nxd5 {[%emt 0:02:30]} 19. cxd5 Qd7 20. Qg3 {[%emt 0:05:03]} Bg4 {[%emt 0:06:12]} 21. Bg2 {[%emt 0:01:20]} Rbc8 {[%emt 0:01:35]} 22. h3 {[%emt 0:01:59]} Bh5 {[%emt 0:00:31]} 23. e4 {[%emt 0:02:58]} Rxc1 {[%emt 0:02:43]} 24. Rxc1 {[%emt 0:00:12]} Rc8 {[%emt 0:00:24]} 25. Re1 {[%emt 0:01:34]} Qc7 {[%emt 0:04:41]} 26. Qf2 {[%emt 0:01:37]} Qa5 {[%emt 0:01:53]} 27. a3 {[%emt 0:06:00]} Bxd4 {[%emt 0:02:20]} 28. Bxd4 {[%emt 0:01:09]} Qxa3 {[%emt 0:00:18]} 29. f5 {[%emt 0:05:42]} f6 {[%emt 0:03:29]} 30. Qf4 {[%emt 0:04:13]} Qb4 {[%emt 0:03:59]} 31. Bf2 {[%emt 0:00:51]} Kh7 {[%emt 0:00:30]} 32. fxg6+ {[%emt 0:03:44]} Bxg6 {[%emt 0:00:19]} 33. Bf3 {[%emt 0:00:27]} Bf7 {[%emt 0:03:21]} 34. Re2 {[%emt 0:01:47]} Qc3 {[%emt 0:00:46]} 35. Be3 {[%emt 0:00:36]} Qa1+ {[%emt 0:00:57]} 36. Kf2 {[%emt 0:01:28]} Ng8 {[%emt 0:00:52]} 37. Qf5+ {[%emt 0:00:17]} 1-0

[Event "Slovakian ECo-C Extraliga 2024-25"]
[Site "Slovakia"]
[Date "2025.02.16"]
[Round "6.7"]
[White "Zpevak, Pavel"]
[Black "Farkas, Gabor"]
[Result "0-1"]
[Annotator "ChessBase"]
[ECO "A10"]
[WhiteElo "2267"]
[BlackElo "2314"]
[PlyCount "112"]
[EventDate "2024.09.12"]
[EventType "team-tourn"]
[EventCountry "SVK"]
[SourceTitle "playchess.com"]
[Source "ChessBase"]
[SourceQuality "1"]
[TimeControl "5400+30"]

1. c4 {[%emt 0:00:20]} f5 {[%emt 0:01:32]} 2. Nf3 {[%emt 0:03:41]} Nf6 {[%emt 0:01:37]} 3. g3 {[%emt 0:01:14]} d6 {[%emt 0:00:46]} 4. Bg2 {[%emt 0:00:53]} g6 {[%emt 0:03:16]} 5. O-O {[%emt 0:01:13]} Bg7 {[%emt 0:00:22]} 6. Nc3 {[%emt 0:01:23]} O-O {[%emt 0:05:43]} 7. d3 {[%emt 0:02:52]} e5 {[%emt 0:01:57]} 8. Rb1 {[%emt 0:00:56]} a5 {[%emt 0:10:35]} 9. a3 {[%emt 0:00:39]} h6 {[%emt 0:02:07]} 10. b4 {[%emt 0:03:50]} axb4 {[%emt 0:01:16]} 11. axb4 {[%emt 0:00:23]} f4 {[%emt 0:12:07]} 12. c5 {[%emt 0:08:17]} fxg3 {[%emt 0:02:55]} 13. Qb3+ {[%emt 0:07:42]} Kh7 {[%emt 0:00:52]} 14. hxg3 {[%emt 0:01:35]} Nc6 {[%emt 0:02:32]} 15. cxd6 {[%emt 0:19:53]} cxd6 {[%emt 0:05:54]} 16. b5 {[%emt 0:19:06]} Nd4 {[%emt 0:03:00]} 17. Nxd4 {[%emt 0:02:54]} exd4 {[%emt 0:00:15]} 18. Nd5 {[%emt 0:00:55]} Nxd5 {[%emt 0:03:14]} 19. Bxd5 {[%emt 0:02:41]} Qe7 {[%emt 0:00:47]} 20. Rb2 {[%emt 0:10:05]} Ra1 {[%emt 0:03:42]} 21. Ra2 {[%emt 0:01:24]} Rxa2 {[%emt 0:01:49]} 22. Qxa2 {[%emt 0:00:31]} Bh3 {[%emt 0:00:28]} 23. Bg2 {[%emt 0:00:39]} Bxg2 {[%emt 0:00:28]} 24. Kxg2 {[%emt 0:00:03]} Rf5 {[%emt 0:00:54]} 25. b6 {[%emt 0:03:00]} Qd7 {[%emt 0:00:57]} 26. e4 {[%emt 0:00:49]} dxe3 {[%emt 0:05:52]} 27. Bxe3 {[%emt 0:00:10]} Qc6+ {[%emt 0:00:04]} 28. f3 {[%emt 0:01:21]} Rb5 {[%emt 0:02:01]} 29. Rc1 {[%emt 0:01:09]} Qe8 {[%emt 0:00:31]} 30. Bf2 {[%emt 0:02:07]} Rb2 {[%emt 0:01:20]} 31. Qd5 {[%emt 0:00:16]} Qe3 {[%emt 0:02:15]} 32. Rf1 {[%emt 0:00:07]} Qxb6 {[%emt 0:02:24]} 33. Kg1 {[%emt 0:01:07]} Qb4 {[%emt 0:02:27]} 34. f4 {[%emt 0:00:42]} b5 {[%emt 0:05:02]} 35. Re1 {[%emt 0:03:10]} Qd2 {[%emt 0:08:19]} 36. Qf3 {[%emt 0:00:10]} h5 {[%emt 0:01:03]} 37. Re7 {[%emt 0:00:56]} Qc1+ {[%emt 0:01:38]} 38. Kg2 {[%emt 0:00:37]} Qc5 {[%emt 0:01:57]} 39. f5 {[%emt 0:00:39]} Qxf5 {[%emt 0:01:29]} 40. Qxf5 {[%emt 0:00:06]} gxf5 {[%emt 0:00:05]} 41. Kf3 {[%emt 0:00:10]} Rb3 {[%emt 0:00:52]} 42. Ke2 {[%emt 0:00:00]} Kg8 {[%emt 0:00:00]} 43. Re6 {[%emt 0:00:00]} Be5 {[%emt 0:00:00]} 44. Rh6 {[%emt 0:00:00]} Kg7 {[%emt 0:00:00]} 45. Rxh5 {[%emt 0:00:00]} Kg6 {[%emt 0:00:00]} 46. Rh1 {[%emt 0:00:00]} b4 {[%emt 0:00:00]} 47. Rh4 {[%emt 0:00:00]} Rb2+ {[%emt 0:00:00]} 48. Kf3 {[%emt 0:00:00]} Rb1 {[%emt 0:00:00]} 49. Rc4 {[%emt 0:00:00]} b3 {[%emt 0:00:00]} 50. d4 {[%emt 0:00:00]} Bf6 {[%emt 0:00:00]} 51. Rb4 {[%emt 0:00:00]} d5 {[%emt 0:00:00]} 52. Rb5 {[%emt 0:00:00]} b2 {[%emt 0:00:00]} 53. Ke2 {[%emt 0:00:00]} Bg5 {[%emt 0:00:00]} 54. Be1 {[%emt 0:00:06]} Kh5 {[%emt 0:00:00]} 55. Bc3 {[%emt 0:01:01]} Kg4 {[%emt 0:00:00]} 56. Kd3 {[%emt 0:01:15]} Rd1+ {[%emt 0:00:00]} 0-1

[Event "Slovakian ECo-C Extraliga 2024-25"]
[Site "Slovakia"]
[Date "2025.02.16"]
[Round "6.7"]
[White "Petran, Peter"]
[Black "Garban, Mario"]
[Result "1/2-1/2"]
[Annotator "ChessBase"]
[ECO "A34"]
[WhiteElo "2170"]
[BlackElo "2173"]
[PlyCount "76"]
[EventDate "2024.09.12"]
[EventType "team-tourn"]
[EventCountry "SVK"]
[SourceTitle "playchess.com"]
[Source "ChessBase"]
[SourceQuality "1"]
[TimeControl "5400+30"]

1. c4 {[%emt 0:00:02]} c5 {[%emt 0:03:42]} 2. Nc3 {[%emt 0:00:21]} g6 {[%emt 0:13:29]} 3. Nf3 {[%emt 0:03:44]} Bg7 {[%emt 0:00:48]} 4. d4 {[%emt 0:03:44]} cxd4 {[%emt 0:00:43]} 5. Nxd4 {[%emt 0:00:05]} Nc6 {[%emt 0:00:20]} 6. e3 {[%emt 0:00:58]} a6 {[%emt 0:14:14]} 7. Be2 {[%emt 0:00:22]} Nf6 {[%emt 0:09:16]} 8. O-O {[%emt 0:00:15]} O-O {[%emt 0:00:34]} 9. Nc2 {[%emt 0:02:32]} d6 {[%emt 0:17:47]} 10. e4 {[%emt 0:06:14]} Qc7 {[%emt 0:04:18]} 11. Rb1 {[%emt 0:09:48]} Na5 {[%emt 0:03:23]} 12. Ne3 {[%emt 0:01:37]} Be6 {[%emt 0:01:12]} 13. Ncd5 {[%emt 0:03:07]} Bxd5 {[%emt 0:03:25]} 14. exd5 {[%emt 0:00:19]} b6 {[%emt 0:02:19]} 15. b4 {[%emt 0:03:41]} Nb7 {[%emt 0:00:06]} 16. Bb2 {[%emt 0:00:09]} a5 {[%emt 0:00:12]} 17. a3 {[%emt 0:00:07]} axb4 {[%emt 0:00:02]} 18. axb4 {[%emt 0:00:04]} Ra2 {[%emt 0:00:31]} 19. Qb3 {[%emt 0:01:10]} Rfa8 {[%emt 0:01:15]} 20. Bf3 {[%emt 0:04:11]} Nd7 {[%emt 0:01:29]} 21. Bxg7 {[%emt 0:03:13]} R8a3 {[%emt 0:02:16]} 22. Qd1 {[%emt 0:02:57]} Kxg7 {[%emt 0:00:07]} 23. Qd4+ {[%emt 0:01:58]} Ne5 {[%emt 0:00:49]} 24. Ra1 {[%emt 0:06:10]} f6 {[%emt 0:07:45]} 25. Rxa2 {[%emt 0:03:41]} Nxf3+ {[%emt 0:00:47]} 26. gxf3 {[%emt 0:00:02]} Rxa2 {[%emt 0:00:06]} 27. Ra1 {[%emt 0:00:31]} Rxa1+ {[%emt 0:00:21]} 28. Qxa1 {[%emt 0:00:02]} Nd8 {[%emt 0:00:18]} 29. f4 {[%emt 0:06:50]} Nf7 {[%emt 0:00:25]} 30. Qa4 {[%emt 0:01:35]} Nh6 {[%emt 0:00:23]} 31. Kg2 {[%emt 0:02:23]} Nf5 {[%emt 0:03:27]} 32. Nxf5+ {[%emt 0:00:40]} gxf5 {[%emt 0:00:06]} 33. Qe8 {[%emt 0:05:13]} Qxc4 {[%emt 0:02:45]} 34. Qxe7+ {[%emt 0:00:10]} Kg6 {[%emt 0:00:11]} 35. Qxd6 {[%emt 0:00:54]} Qe4+ {[%emt 0:00:17]} 36. Kg3 {[%emt 0:04:25]} Qd3+ {[%emt 0:00:28]} 37. f3 {[%emt 0:01:02]} Qe3 {[%emt 0:00:31]} 38. Kg2 {[%emt 0:04:08]} Qe2+ {[%emt 0:00:09]} 1/2-1/2

[Event "Slovakian ECo-C Extraliga 2024-25"]
[Site "Slovakia"]
[Date "2025.02.16"]
[Round "6.8"]
[White "Gyerpal, Adrian"]
[Black "Bombek, Peter"]
[Result "1/2-1/2"]
[Annotator "ChessBase"]
[ECO "E04"]
[WhiteElo "2184"]
[BlackElo "2104"]
[PlyCount "53"]
[EventDate "2024.09.12"]
[EventType "team-tourn"]
[EventCountry "SVK"]
[SourceTitle "playchess.com"]
[Source "ChessBase"]
[SourceQuality "1"]
[TimeControl "5400+30"]

1. d4 {[%emt 0:00:04]} Nf6 {[%emt 0:00:45]} 2. Nf3 {[%emt 0:00:29]} e6 {[%emt 0:00:29]} 3. c4 {[%emt 0:00:13]} d5 {[%emt 0:00:04]} 4. g3 {[%emt 0:00:09]} dxc4 {[%emt 0:00:08]} 5. Bg2 {[%emt 0:00:07]} c5 {[%emt 0:00:11]} 6. O-O {[%emt 0:00:28]} Nc6 {[%emt 0:00:09]} 7. dxc5 {[%emt 0:00:09]} Qxd1 {[%emt 0:00:11]} 8. Rxd1 {[%emt 0:00:07]} Bxc5 {[%emt 0:00:19]} 9. Nbd2 {[%emt 0:00:18]} c3 {[%emt 0:00:30]} 10. bxc3 {[%emt 0:00:07]} O-O 11. Nb3 {[%emt 0:00:04]} Be7 {[%emt 0:01:21]} 12. c4 {[%emt 0:00:14]} Bd7 {[%emt 0:01:25]} 13. Bb2 {[%emt 0:00:22]} Rfc8 {[%emt 0:01:33]} 14. Rac1 {[%emt 0:07:35]} Be8 {[%emt 0:03:23]} 15. Nfd4 {[%emt 0:01:16]} a6 {[%emt 0:05:45]} 16. Nxc6 {[%emt 0:20:24]} Bxc6 {[%emt 0:01:57]} 17. Bxc6 {[%emt 0:00:07]} bxc6 {[%emt 0:12:29]} 18. Be5 {[%emt 0:04:46]} a5 {[%emt 0:06:53]} 19. Bd6 {[%emt 0:03:16]} Bxd6 {[%emt 0:07:10]} 20. Rxd6 {[%emt 0:00:11]} a4 {[%emt 0:04:11]} 21. Nd4 {[%emt 0:03:22]} c5 {[%emt 0:00:50]} 22. Nb5 {[%emt 0:02:02]} g6 {[%emt 0:10:46]} 23. Rcd1 {[%emt 0:02:46]} a3 {[%emt 0:12:59]} 24. Rb6 {[%emt 0:21:54]} Ra4 {[%emt 0:04:54]} 25. Nd6 {[%emt 0:03:13]} Rd8 {[%emt 0:02:00]} 26. Rdb1 {[%emt 0:15:57]} Nd7 {[%emt 0:05:07]} 27. R6b5 {[%emt 0:04:10]} 1/2-1/2

[Event "Slovakian ECo-C Extraliga 2024-25"]
[Site "Slovakia"]
[Date "2025.02.16"]
[Round "6.8"]
[White "Kasperek, Ryszard"]
[Black "Zetocha, Adrian"]
[Result "1-0"]
[Annotator "ChessBase"]
[ECO "B76"]
[WhiteElo "2069"]
[BlackElo "2187"]
[PlyCount "79"]
[EventDate "2024.09.12"]
[EventType "team-tourn"]
[EventCountry "SVK"]
[SourceTitle "playchess.com"]
[Source "ChessBase"]
[SourceQuality "1"]
[TimeControl "5400+30"]

1. e4 {[%emt 0:00:04]} c5 {[%emt 0:00:18]} 2. Nf3 {[%emt 0:00:27]} d6 {[%emt 0:00:23]} 3. d4 {[%emt 0:01:54]} cxd4 {[%emt 0:00:09]} 4. Nxd4 {[%emt 0:00:04]} Nf6 {[%emt 0:00:10]} 5. Nc3 {[%emt 0:00:05]} g6 {[%emt 0:00:13]} 6. Be3 {[%emt 0:00:16]} Bg7 {[%emt 0:00:14]} 7. f3 {[%emt 0:00:16]} O-O {[%emt 0:01:51]} 8. Qd2 {[%emt 0:00:07]} Nc6 {[%emt 0:00:05]} 9. O-O-O {[%emt 0:01:04]} d5 {[%emt 0:00:08]} 10. exd5 {[%emt 0:00:16]} Nxd5 {[%emt 0:00:21]} 11. Nxc6 {[%emt 0:00:19]} bxc6 {[%emt 0:00:05]} 12. Bd4 {[%emt 0:00:05]} Bxd4 {[%emt 0:00:57]} 13. Qxd4 {[%emt 0:00:07]} Qb6 {[%emt 0:00:06]} 14. Na4 {[%emt 0:07:31]} Qc7 {[%emt 0:00:08]} 15. g3 {[%emt 0:16:31]} Rb8 {[%emt 0:03:54]} 16. a3 {[%emt 0:16:49]} Bf5 {[%emt 0:16:33]} 17. Bc4 {[%emt 0:16:24]} Rfd8 {[%emt 0:05:53]} 18. Qc5 {[%emt 0:02:31]} Be6 {[%emt 0:43:54]} 19. Rhe1 {[%emt 0:04:39]} Nf4 {[%emt 0:02:25]} 20. Nc3 {[%emt 0:14:20]} Rxd1+ {[%emt 0:04:16]} 21. Rxd1 {[%emt 0:01:52]} Bxc4 {[%emt 0:00:57]} 22. Qxc4 {[%emt 0:00:06]} Ne6 {[%emt 0:00:16]} 23. b3 {[%emt 0:04:23]} Rb7 {[%emt 0:05:43]} 24. f4 {[%emt 0:01:23]} Ng7 {[%emt 0:04:23]} 25. Qd4 {[%emt 0:02:51]} Nf5 {[%emt 0:00:38]} 26. Qd8+ {[%emt 0:00:47]} Kg7 {[%emt 0:00:07]} 27. Ne4 {[%emt 0:01:41]} Qb6 {[%emt 0:02:26]} 28. Kb2 {[%emt 0:03:36]} Ne3 {[%emt 0:01:36]} 29. Qd4+ {[%emt 0:01:10]} Qxd4+ {[%emt 0:03:38]} 30. Rxd4 {[%emt 0:00:01]} Nf1 {[%emt 0:00:13]} 31. h3 {[%emt 0:01:00]} f5 {[%emt 0:01:30]} 32. Nc5 {[%emt 0:02:01]} Rb5 {[%emt 0:00:11]} 33. b4 {[%emt 0:00:15]} a5 {[%emt 0:01:28]} 34. c4 {[%emt 0:00:36]} Rb8 {[%emt 0:00:22]} 35. Kb3 {[%emt 0:00:53]} Nxg3 {[%emt 0:00:14]} 36. Rd7 {[%emt 0:00:39]} Kf6 {[%emt 0:01:59]} 37. Rd3 {[%emt 0:00:12]} a4+ {[%emt 0:00:37]} 38. Kc2 {[%emt 0:00:33]} Ra8 {[%emt 0:00:22]} 39. Rxg3 {[%emt 0:00:05]} Ra7 {[%emt 0:00:22]} 40. Re3 {[%emt 0:00:14]} 1-0

[Event "Slovakian ECo-C Extraliga 2024-25"]
[Site "Slovakia"]
[Date "2025.02.16"]
[Round "6.8"]
[White "Ropovik, Samuel"]
[Black "Federic, Jozef"]
[Result "0-1"]
[Annotator "ChessBase"]
[ECO "B60"]
[WhiteElo "1948"]
[BlackElo "2203"]
[PlyCount "132"]
[EventDate "2024.09.12"]
[EventType "team-tourn"]
[EventCountry "SVK"]
[SourceTitle "playchess.com"]
[Source "ChessBase"]
[SourceQuality "1"]
[TimeControl "5400+30"]

1. e4 {[%emt 0:00:03]} c5 {[%emt 0:00:10]} 2. Nf3 {[%emt 0:00:07]} Nc6 {[%emt 0:00:26]} 3. d4 {[%emt 0:01:27]} cxd4 {[%emt 0:00:26]} 4. Nxd4 {[%emt 0:00:01]} Nf6 {[%emt 0:03:05]} 5. Nc3 {[%emt 0:00:11]} d6 {[%emt 0:00:21]} 6. Bg5 {[%emt 0:00:44]} a6 {[%emt 0:10:47]} 7. Qd2 {[%emt 0:05:54]} Ng4 {[%emt 0:22:00]} 8. h3 {[%emt 0:11:52]} Nge5 {[%emt 0:02:20]} 9. Nb3 {[%emt 0:05:17]} b5 {[%emt 0:15:00]} 10. a4 {[%emt 0:20:27]} Nc4 {[%emt 0:11:11]} 11. Qc1 {[%emt 0:10:53]} bxa4 {[%emt 0:01:26]} 12. Bxc4 {[%emt 0:08:56]} axb3 {[%emt 0:00:12]} 13. Bxb3 {[%emt 0:00:51]} h6 {[%emt 0:03:03]} 14. Be3 {[%emt 0:02:40]} e6 {[%emt 0:00:40]} 15. Qd2 {[%emt 0:02:13]} Be7 {[%emt 0:01:54]} 16. Na4 {[%emt 0:03:37]} O-O {[%emt 0:02:34]} 17. Nb6 {[%emt 0:01:27]} Rb8 {[%emt 0:00:08]} 18. Nxc8 {[%emt 0:00:10]} Qxc8 {[%emt 0:00:08]} 19. Ba4 {[%emt 0:02:03]} Ne5 {[%emt 0:01:58]} 20. b3 {[%emt 0:01:04]} Bf6 {[%emt 0:05:04]} 21. Bd4 {[%emt 0:02:08]} Qb7 {[%emt 0:00:19]} 22. Qe3 {[%emt 0:02:45]} Qe7 {[%emt 0:04:23]} 23. O-O {[%emt 0:00:33]} Rfc8 {[%emt 0:00:17]} 24. c3 {[%emt 0:02:34]} Nc6 {[%emt 0:01:16]} 25. Bxc6 {[%emt 0:06:53]} Rxc6 {[%emt 0:00:35]} 26. Bxf6 {[%emt 0:00:55]} Qxf6 {[%emt 0:00:08]} 27. Qa7 {[%emt 0:01:58]} Rbb6 {[%emt 0:01:20]} 28. Rfc1 {[%emt 0:03:59]} Qe5 {[%emt 0:01:02]} 29. Ra4 {[%emt 0:00:09]} g6 {[%emt 0:01:18]} 30. Rb4 {[%emt 0:02:51]} Rxb4 {[%emt 0:00:48]} 31. Qa8+ {[%emt 0:00:18]} Kg7 {[%emt 0:00:19]} 32. Qxc6 {[%emt 0:00:08]} Rxb3 {[%emt 0:00:51]} 33. Qxa6 {[%emt 0:00:15]} Rxc3 {[%emt 0:01:08]} 34. Rxc3 {[%emt 0:00:10]} Qxc3 {[%emt 0:00:06]} 35. Qe2 {[%emt 0:01:55]} Qa1+ {[%emt 0:00:44]} 36. Kh2 {[%emt 0:00:06]} Qe5+ {[%emt 0:00:07]} 37. Kh1 {[%emt 0:00:54]} d5 {[%emt 0:00:11]} 38. f3 {[%emt 0:00:10]} d4 {[%emt 0:02:34]} 39. Qc4 {[%emt 0:00:49]} Qd6 {[%emt 0:00:09]} 40. Qd3 {[%emt 0:00:30]} Qc5 {[%emt 0:00:44]} 41. Kg1 {[%emt 0:00:00]} Qc3 {[%emt 0:00:00]} 42. Qd1 {[%emt 0:00:00]} e5 {[%emt 0:00:00]} 43. Kf1 {[%emt 0:00:00]} Qe3 {[%emt 0:00:00]} 44. Qb1 {[%emt 0:00:00]} d3 {[%emt 0:00:00]} 45. Qe1 {[%emt 0:00:00]} Qd4 {[%emt 0:00:00]} 46. Qd2 {[%emt 0:00:00]} h5 {[%emt 0:00:00]} 47. h4 {[%emt 0:00:00]} Kf6 {[%emt 0:00:00]} 48. g3 {[%emt 0:00:00]} Ke7 {[%emt 0:00:00]} 49. Qf2 {[%emt 0:00:00]} Qc3 {[%emt 0:00:00]} 50. Qe3 {[%emt 0:00:00]} Kd7 {[%emt 0:00:00]} 51. Qa7+ {[%emt 0:00:28]} Kc6 {[%emt 0:00:00]} 52. Qxf7 {[%emt 0:02:45]} Qc1+ {[%emt 0:01:39]} 53. Kf2 {[%emt 0:00:11]} Qc2+ {[%emt 0:07:11]} 54. Kf1 {[%emt 0:01:02]} d2 {[%emt 0:01:05]} 55. Qd5+ {[%emt 0:02:47]} Kb6 {[%emt 0:00:09]} 56. Qd6+ {[%emt 0:00:48]} Ka5 {[%emt 0:00:58]} 57. Qxe5+ {[%emt 0:00:28]} Ka4 {[%emt 0:00:34]} 58. Qe8+ {[%emt 0:00:31]} Ka3 {[%emt 0:00:45]} 59. Qa8+ {[%emt 0:00:31]} Kb2 {[%emt 0:00:12]} 60. Qb8+ {[%emt 0:00:26]} Kc1 {[%emt 0:00:52]} 61. Qf4 {[%emt 0:00:12]} Qc4+ {[%emt 0:00:34]} 62. Kf2 {[%emt 0:00:48]} Kc2 {[%emt 0:00:12]} 63. Qe3 {[%emt 0:00:35]} d1=N+ {[%emt 0:00:13]} 64. Ke1 {[%emt 0:00:06]} Nxe3 {[%emt 0:00:10]} 65. Kf2 {[%emt 0:00:12]} Kd2 {[%emt 0:00:09]} 66. f4 {[%emt 0:00:10]} Qf1# 0-1